Cogmind - Beta 16.1 @@@ ROGUE MODE // 2026.04.03 @ 16:47:57 Player: the Result: Destroyed by H-88 Terminator with Heavy Machine Gun Performance ------------- Evolutions (8) 4000 Regions Visited (21) 4200 Robots Destroyed (342) 1710 Value Destroyed (19862) 19862 Prototype IDs (143) 2860 Alien Tech Used (8) 1600 Bonus (10801) 10801 TOTAL SCORE: 45033 Bonus ------- High Alert Combat Kills 6328 Follower Combat Kills 991 Registered with UFD 300 Met Optimus in HQ 500 Met Zhirov 300 Met Warlord at Base 500 MAIN.C Attacked Warlord 500 Warlord Defense Kills 1928 Met Optimus at Protoforge 1000 Friendly Fire -1546 Cogmind --------- Core Integrity 0/1450 Matter 300/300 Energy 97/100 System Corruption 13% Temperature Cool (6) Movement Flying (22) Location -2/Protoforge Parts ------- > --- POWER (3) -------- (None) > --- PROPULSION (4) --- Experimental Surge Thruster > --- UTILITY (12) ----- Graphene Brace > --- WEAPON (4) ------- (None) > --- INVENTORY (5) ---- Long-range Tractor Beam Core Stripper Peak State ------------ > --- POWER ------------ Cooled Antimatter Reactor Cooled Antimatter Reactor Cooled Antimatter Reactor > --- PROPULSION ------- High-density Centrium Heavy Treads Overtuned Huge Scrapsphere > --- UTILITY ---------- Experimental Cooling System High-capacity Storage Unit Experimental Signal Interpreter Long-range Terrain Scanner Experimental Targeting Computer Experimental Target Analyzer Centrium Medium Armor Plating Centrium Heavy Armor Plating Graphene Brace Advanced Force Field A0-MCA's Component Scanner > --- WEAPON ----------- Heavy Quantum Rifle Enhanced Nova Cannon Core Stripper > --- INVENTORY -------- Vortex Chain Reactor Matter Drive Wheel Experimental Energy Well Experimental Energy Well Experimental Matter Compressor Advanced Sensor Array Heavy Servo Lattice Quantum Capacitor Long-range Tractor Beam Dimensional Node Initializer High-powered Transdimensional Reconstructor Supercharged TR Potential Cannon Enhanced Gamma Bomb Array Tiamat Missile Launcher [Rating: 216] Favorites ----------- Power Cooled Antimatter Reactor Power Core Hybrid Fission Core Reactor Cooled Antimatter Reactor Propulsion Overtuned Huge Scrapsphere Treads Light Treads Leg Overtuned Armored Exoskeleton Wheel Overtuned Huge Scrapsphere Flight Unit Experimental Surge Thruster Utility High-capacity Storage Unit Device Advanced Sensor Array Storage High-capacity Storage Unit Processor Experimental Targeting Computer Hackware Advanced Hacking Suite Protection Centrium Heavy Armor Plating Weapon Hypervelocity Gauss Cannon Energy Gun Heavy Quantum Rifle Energy Cannon Nova Cannon Ballistic Gun Overtuned Coil Gun Ballistic Cannon Hypervelocity Gauss Cannon Launcher Chain Missile Launcher Special Weapon CPS Tube Impact Weapon Thunder Hammer Slashing Weapon Chainsword Build | -11 -10 -10 -7 -7 -5 -5 -5 -5 -5 -5 -4 -4 -4 -4 -4 -3 -3 -3 -2 -2 -2 ------- Run | Yrd Mat Sub Rec Scr Fac Was Fac Upp Upp War Pro Fac Upp Upp Zhi Pro Res Tes Res Qua Frg Slots Evolved 16 | . . . . . 10 . . . . . . 2 . . . . 2 . 2 . . Power 2 | . . . . . 1 . . . . . . . . . . . . . 1 . . Propulsion 2 | . . . . . 2 . . . . . . . . . . . . . . . . Utility 10 | . . . . . 6 . . . . . . 2 . . . . 2 . . . . Weapon 2 | . . . . . 1 . . . . . . . . . . . . . 1 . . Parts Attached 139 | 3 2 . 2 4 19 5 9 1 . 5 1 19 3 1 3 1 6 15 6 17 17 Power 18 | . 1 . . 1 2 1 1 . . . . 5 . . . . . 2 1 2 2 Engine . | . . . . . . . . . . . . . . . . . . . . . . Core 8 | . 1 . . 1 2 . . . . . . 4 . . . . . . . . . Reactor 10 | . . . . . . 1 1 . . . . 1 . . . . . 2 1 2 2 Propulsion 14 | 2 . . 1 . 3 . . . . . . 2 . . . . . . . 1 5 Treads 3 | 2 . . . . . . . . . . . . . . . . . . . 1 . Leg 1 | . . . . . . . . . . . . . . . . . . . . . 1 Wheel 8 | . . . 1 . 3 . . . . . . 2 . . . . . . . . 2 Hover . | . . . . . . . . . . . . . . . . . . . . . . Flight 2 | . . . . . . . . . . . . . . . . . . . . . 2 Utility 67 | . . . . 3 8 . 6 1 . 3 1 7 3 1 3 1 4 8 1 12 5 Device 34 | . . . . 1 5 . 5 1 . . 1 3 1 . . 1 3 2 1 6 4 Storage 9 | . . . . 2 . . 1 . . 1 . 1 . . 1 . . 3 . . . Processor 8 | . . . . . 2 . . . . 1 . 1 . . . . 1 1 . 1 1 Hackware 5 | . . . . . 1 . . . . . . 1 1 . 1 . . . . 1 . Protection 11 | . . . . . . . . . . 1 . 1 1 1 1 . . 2 . 4 . Artifact . | . . . . . . . . . . . . . . . . . . . . . . Weapon 40 | 1 1 . 1 . 6 4 2 . . 2 . 5 . . . . 2 5 4 2 5 Energy Gun 3 | . . . . . . . . . . . . 1 . . . . . 2 . . . Energy Cannon 10 | . . . . . 2 1 . . . 1 . 1 . . . . 1 2 1 . 1 Ballistic Gun 6 | 1 1 . . . . 1 . . . . . 2 . . . . . . . . 1 Ballistic Cannon 9 | . . . . . 1 2 2 . . . . . . . . . . . 3 1 . Launcher 3 | . . . . . . . . . . 1 . . . . . . 1 . . . 1 Special Weapon 4 | . . . . . 1 . . . . . . 1 . . . . . 1 . . 1 Impact Weapon 3 | . . . . . 2 . . . . . . . . . . . . . . 1 . Slashing Weapon 2 | . . . 1 . . . . . . . . . . . . . . . . . 1 Piercing Weapon . | . . . . . . . . . . . . . . . . . . . . . . Special Melee Weapon . | . . . . . . . . . . . . . . . . . . . . . . Unidentified Prototypes 29 | . . . . . 2 . 3 . . 4 . 1 . . 4 . 1 5 1 7 1 Corrupted Parts 1 | . . . . . . . . . . . . . . . . . . 1 . . . System Corruption 5 | . . . . . . . . . . . . . . . . . . 5 . . . Parts Lost 40 | . . 2 . . 1 . 2 . . . . 7 . . . . 2 6 . 5 15 Power 8 | . . 1 . . . . . . . . . 3 . . . . . . . . 4 Propulsion 2 | . . . . . 1 . . . . . . . . . . . . . . . 1 Utility 17 | . . . . . . . 1 . . . . . . . . . 1 3 . 5 7 Weapon 13 | . . 1 . . . . 1 . . . . 4 . . . . 1 3 . . 3 Highest Loss Streak 15 | . . 2 . . 1 . 2 . . . . 3 . . . . 2 3 . 2 15 To Critical Strikes 2 | . . 1 . . . . . . . . . . . . . . . . . . 1 Average Backups 15 | 1 4 5 4 9 16 18 17 16 17 15 17 16 16 16 15 16 15 15 16 16 14 Power 1 | . . . . . 1 2 2 2 2 2 2 1 1 1 1 1 1 1 2 1 . Propulsion . | . 1 2 1 2 . . . . . . . . . . . . . . . . . Utility 8 | . 1 2 2 4 5 7 7 8 9 7 9 9 12 12 11 11 10 9 9 8 6 Weapon 3 | . . 1 . . 5 6 4 3 3 3 4 2 2 2 1 2 1 3 4 3 3 Tool/Special . | . . . . . . . . . . . . . . . . . . . . . . Unused Backups 40 | . 4 . 4 2 4 1 1 . . 6 . 2 4 . . . 3 3 . 3 3 Power 2 | . 1 . . . . . . . . 1 . . . . . . . . . . . Propulsion 9 | . 2 . 1 2 1 . . . . . . 1 . . . . . . . 2 . Utility 17 | . 1 . 2 . . . 1 . . 1 . 1 4 . . . 3 3 . . 1 Weapon 8 | . . . 1 . 3 1 . . . 2 . . . . . . . . . . 1 Tool/Special 4 | . . . . . . . . . . 2 . . . . . . . . . 1 1 Average Slot Usage (%) 76 | . 59 62 29 50 72 82 81 82 82 81 76 80 83 84 70 84 84 80 79 83 65 Core 2 | . 6 8 . 8 7 5 1 . . . . 4 5 5 5 5 4 3 . . . Reactor 7 | . . . . . . 4 9 11 11 11 11 4 5 5 5 5 4 4 12 12 7 Wheel 9 | . . . 13 14 10 11 11 11 11 11 11 10 10 10 10 10 9 9 8 8 7 Device 13 | . . . . 1 15 17 16 17 17 14 11 14 15 14 15 15 17 12 12 15 15 Storage 5 | . . . . 11 5 5 5 5 5 5 5 5 5 5 5 5 4 4 4 4 4 Processor 12 | . . . . . 6 11 11 11 11 12 17 15 15 15 15 15 19 19 13 15 14 Hackware 5 | . . . . . 4 5 5 5 5 5 5 8 10 10 10 10 9 9 8 5 . Protection 1 | . . . . . . . . . . 1 . 2 . . . . 1 4 4 4 3 Energy Gun 1 | . . . . . . . . . . . . . 3 . 1 . 1 2 2 3 2 Energy Cannon 1 | . . . . . 4 . 1 . . . . 2 1 5 . 5 2 4 3 . 5 Ballistic Gun 2 | . 24 24 11 . . . . . . . . 3 9 10 . 10 8 3 . . 1 Ballistic Cannon 6 | . . . . . 1 15 15 17 17 14 5 6 . . . . . . 8 9 . Slashing Weapon 1 | . . . 2 14 3 . . . . . . . . . . . . . . . . Peak Build Rating 216 | 3 7 7 14 30 98 101 102 99 100 110 112 122 117 118 121 121 138 152 188 216 209 Average Rating 121 | 2 5 5 10 20 83 98 99 98 99 99 110 109 113 117 101 120 131 140 178 193 175 On Entrance 91 | . 3 7 3 13 30 98 98 98 99 100 105 111 111 117 117 121 120 130 149 186 202 Avg Prop Armor Cover (%) 14 | 31 27 30 27 32 . . . . . . . 4 . . . . . . . 2 2 Naked Turns . | . . . . . . . . . . . . . . . . . . . . . . Heaviest Build 179 | 2 8 8 3 54 96 106 107 111 105 115 108 124 106 109 98 98 115 124 167 177 179 Greatest Support 56 | 3 40 40 3 28 56 40 40 40 40 40 40 40 40 40 40 40 40 40 40 40 40 Greatest Overweight (x) 16 | . . 2 . 1 3 2 2 2 2 2 2 4 2 2 2 2 2 3 4 8 16 Average Overweight (x) 2 | . . . . . 1 2 2 2 2 2 2 1 2 2 1 2 2 2 3 5 3 Largest Inventory Capacity 20 | 5 5 5 5 20 20 20 20 20 20 20 20 20 20 20 20 20 20 20 20 20 20 Average Capacity 19 | 5 5 5 5 15 20 20 20 20 20 20 20 20 20 20 20 20 20 20 20 20 18 Most Carried 20 | 4 5 5 5 20 20 20 20 18 20 20 20 20 20 20 20 20 20 20 20 20 20 Average Carried 18 | 1 4 5 4 12 19 20 19 17 18 16 19 19 19 20 19 19 19 18 19 19 17 Final Capacity 20 | 5 5 5 5 20 20 20 20 20 20 20 20 20 20 20 20 20 20 20 20 20 5 Final Carried 20 | 4 5 5 5 20 20 20 17 18 20 20 20 20 20 20 20 19 20 20 20 20 3 Scrap Suit Usage (%) 36 | . . . . . 66 100 97 16 . 27 2 54 2 92 56 19 48 49 74 1 34 Parts Cannibalized 50 | . . . . . 8 . 1 . . 2 . 9 . . . . 21 3 4 1 1 Class Distribution -------------------- 17% | Scrapper 16% | Scavenger-Scrapper 16% | Mutant 15% | Hacker-Scrapper 7% | Hacker-Gunner 5% | Commander-Scrapper 4% | Skirmisher 4% | Hacker-Skirmisher 4% | Assassin 3% | Gunner Dominant Class ---------------- Mutant | -10/Materials Mutant | -10/Subcaves Mutant | -7/Recycling Mutant | -7/Scraptown Mutant | -5/Factory Scrapper | -5/Waste Scrapper | -5/Factory Scrapper | -5/Upper Caves Scrapper | -5/Upper Caves Commander-Scrapper | -5/Warlord Scavenger-Scrapper | -4/Proximity Caves Scavenger-Scrapper | -4/Factory Scavenger-Scrapper | -4/Upper Caves Scavenger-Scrapper | -4/Upper Caves Hacker-Scrapper | -4/Zhirov Hacker-Scrapper | -3/Proximity Caves Hacker-Scrapper | -3/Research Hacker-Scrapper | -3/Testing Hacker-Gunner | -2/Research Hacker-Skirmisher | -2/Quarantine Sprinter | -2/Protoforge Resources | -11 -10 -10 -7 -7 -5 -5 -5 -5 -5 -5 -4 -4 -4 -4 -4 -3 -3 -3 -2 -2 -2 ----------- Run | Yrd Mat Sub Rec Scr Fac Was Fac Upp Upp War Pro Fac Upp Upp Zhi Pro Res Tes Res Qua Frg Matter Collected 15759 | 106 109 49 . 90 1124 439 1661 108 19 1627 529 2005 322 327 297 93 1978 621 1533 1735 987 Remotely 5430 | . . . . . . . 1265 . . 888 . 1476 . . . . 496 . 891 414 . Salvage Created 18537 | . 109 48 . . 1438 865 2083 65 . 654 68 2376 231 313 437 . 2122 1837 2539 1344 2008 Parts 708 | . 10 6 . . 51 23 70 1 . 27 9 125 4 13 3 . 101 56 97 28 84 Haulers Intercepted 5 | . . . . . . . 2 . . . . 1 1 . . . . 1 . . . Recyclers Shooed 16 | . . . . . 1 . 5 . . . . 6 . . . . 1 3 . . . Parts Field Recycled . | . . . . . . . . . . . . . . . . . . . . . . Retrieved Matter . | . . . . . . . . . . . . . . . . . . . . . . Parts Self-Destructed 52 | . . 9 . . . . . 2 . . 3 . 14 13 2 9 . . . . . Prevented . | . . . . . . . . . . . . . . . . . . . . . . Parts Restored . | . . . . . . . . . . . . . . . . . . . . . . Kills | -11 -10 -10 -7 -7 -5 -5 -5 -5 -5 -5 -4 -4 -4 -4 -4 -3 -3 -3 -2 -2 -2 ------- Run | Yrd Mat Sub Rec Scr Fac Was Fac Upp Upp War Pro Fac Upp Upp Zhi Pro Res Tes Res Qua Frg Combat Hostiles Destroyed 262 | . 2 3 . . 14 5 19 1 . 17 11 38 8 4 . . 33 21 27 28 31 Melee 7 | . . . . . 5 . . . . . . . . . . . . . . . 2 Guns 53 | . 2 3 . . . . . . . 3 . 11 3 3 . . 19 6 . 1 2 Cannons 97 | . . . . . 5 5 18 1 . 9 1 14 . 1 . . 4 6 11 13 9 AOE 71 | . . . . . . . 1 . . 5 10 13 5 . . . 7 6 5 9 10 Classes Destroyed 27 | . 2 1 . . 6 3 5 . . 5 1 1 1 . . . . . . 1 1 Worker 18 | . . . . . 3 . 2 . . . . 5 . . . . 1 . 5 1 1 Builder 17 | . . . . . . . . . . . . 5 . . . . 3 3 5 1 . Tunneler 4 | . 1 . . . 2 . 1 . . . . . . . . . . . . . . Hauler 5 | . . . . . . . 2 . . . . 1 1 . . . . 1 . . . Recycler 19 | . . . . . 4 . 5 . . . . 3 . . . . 3 3 1 . . Minesweeper 1 | . . . . . . . . . . . . . 1 . . . . . . . . Mechanic 1 | . . . . . . . . . . . . . . . . . . . . . 1 Operator 3 | . . . . . . . 1 . . . . . . . . . . . 1 . 1 Drone 6 | . . . . . . . . . . . 2 . . . . . . . . . 4 Watcher 8 | . . . . . 1 . 2 . . . . 1 . . . . 1 . 2 1 . Swarmer 45 | . . 3 . . . . . . . 1 9 13 . . . . 18 . . 1 . Saboteur 1 | . . . . . . . . . . 1 . . . . . . . . . . . Grunt 87 | . 2 . . . 5 1 11 . . 6 . 9 5 3 . . 5 16 14 9 1 Brawler 4 | . . . . . . . . . . 1 . . . 1 . . . 1 . 1 . Duelist 2 | . . . . . . . . . . . . . . . . . . . 1 1 . Protector 5 | . . . . . . . . . . 5 . . . . . . . . . . . Sentry 15 | . . . . . . 1 1 1 . . . 3 . . . . 2 . 4 . 3 Demolisher 1 | . . . . . . . . . . 1 . . . . . . . . . . . Specialist 2 | . . . . . . . . . . . . . . . . . . . . . 2 Hunter 29 | . . . . . 7 . 2 . . . . 6 . . . . 4 . 2 5 3 Programmer 30 | . . . . . . . 5 . . . . 7 . . . . 4 3 6 2 3 Compactor 3 | . . . . . . 3 . . . . . . . . . . . . . . . Quarantine Guard 8 | . . . . . . . . . . . . . . . . . . . . 8 . Hotshot 6 | . . . . . . . . . . . . . . . . . . . . . 6 Striker 6 | . . . . . . . . . . 1 . . . . . . . . . . 5 Executioner 5 | . . . . . . . . . . 1 . . . . . . . . . . 4 Fortress 1 | . . . . . . . . . . . . . . . . . . . . 1 . Protovariant H 1 | . . . . . . . . . . . . . . . . . . 1 . . . Scrapoid 4 | . . . . . 1 . . . . . . . . . . . . . . . 3 Assembled 5 | . . . . . 2 . . . . . . . 3 . . . . . . . . Surgeon 1 | . . . . . . . 1 . . . . . . . . . . . . . . Thug 2 | . . . . . . 1 1 . . . . . . . . . . . . . . Butcher 1 | . . . . . . . 1 . . . . . . . . . . . . . . Martyr 1 | . . . . . . 1 . . . . . . . . . . . . . . . Best Kill Streak 15 | . 2 3 . . 4 3 11 1 . 5 4 10 6 4 . . 10 15 9 5 5 Combat Bots Only 11 | . 2 3 . . 3 3 7 1 . 5 4 9 5 4 . . 8 11 7 4 5 Max Kills in Single Turn 6 | . 1 1 . . 1 1 2 1 . 2 4 6 2 1 . . 4 4 5 4 2 Gunslinging 1 | . . . . . . . . . . . . . . . . . 1 . . . . Exploded 4 | . . . . . . . 1 . . 2 4 4 2 . . . 3 2 2 4 2 Melee 1 | . . . . . 1 . . . . . . . . . . . . . . . 1 Uniques/NPCs Destroyed . | . . . . . . . . . . . . . . . . . . . . . . Combat | -11 -10 -10 -7 -7 -5 -5 -5 -5 -5 -5 -4 -4 -4 -4 -4 -3 -3 -3 -2 -2 -2 -------- Run | Yrd Mat Sub Rec Scr Fac Was Fac Upp Upp War Pro Fac Upp Upp Zhi Pro Res Tes Res Qua Frg Hostile Shots Fired 1337 | . 12 102 45 . 49 10 79 2 . 43 12 169 24 36 . . 134 122 117 148 233 Missed 432 | . 3 36 28 . 10 5 24 1 . 14 1 46 10 6 . . 39 38 50 41 80 Hits 905 | . 9 66 17 . 39 5 55 1 . 29 11 123 14 30 . . 95 84 67 107 153 Melee 9 | . . . . . . . . . . . . . 2 1 . . . 3 1 . 2 Projectile 896 | . 9 66 17 . 39 5 55 1 . 29 11 123 12 29 . . 95 81 66 107 151 AOE 5 | . . . . . . . . . . . . 2 . . . . . . . . 3 Critical Strikes 53 | . 2 1 . . . 2 3 . . . . 4 . 2 . . 4 9 3 9 14 Actively Blocked 11 | . . . . . . . . . . . . . . . . . . 3 . 4 4 Part Disruptions 3 | . . . . . . . . . . . . 2 . . . . . . . 1 . Damage Taken 16865 | . 133 382 127 . 645 103 1161 9 . 510 94 1873 144 387 . . 1180 2015 971 2365 4766 Core 2131 | . 27 62 47 . 101 20 118 . . 81 . 145 18 44 . . 14 232 46 135 1041 Absorbed by Shields 6019 | . . . . . . . . 10 . 108 88 646 151 253 . . 762 . 1004 1747 1250 Regen/Repaired (Parts) 613 | . . . . . 75 . 111 . . 83 . 68 . . . . 198 28 33 7 10 Core Remaining (%) 75 | 100 . . . 45 . . . . . . 68 . . . . 82 . 81 . . . Volleys Fired 941 | . 12 9 . . 26 13 82 2 2 63 12 145 38 10 15 8 113 70 114 128 79 Largest 4 | . 2 2 . . 3 3 3 3 3 3 3 3 3 3 1 1 3 3 4 4 4 Hottest 320 | . 40 40 . . 213 153 153 153 153 160 211 215 164 177 100 113 273 200 250 316 320 Shots Fired 1639 | . 20 16 . . 40 39 191 7 9 101 16 214 47 22 14 8 245 101 181 240 128 Gun 654 | . 20 16 . . . . . . . 44 . 90 30 21 14 . 186 63 15 106 49 Cannon 910 | . . . . . 38 39 191 7 9 54 9 117 13 1 . 8 46 35 139 134 70 Launcher 70 | . . . . . . . . . . 3 7 5 4 . . . 13 3 27 . 8 Special 5 | . . . . . 2 . . . . . . 2 . . . . . . . . 1 Kinetic 959 | . 20 16 . . 12 39 164 7 9 97 9 148 21 21 . . 137 43 60 113 43 Thermal 569 | . . . . . . . 27 . . . . 50 22 1 14 8 95 55 94 127 76 Explosive 21 | . . . . . . . . . . 3 7 5 4 . . . 2 . . . . Electromagnetic 75 | . . . . . 26 . . . . . . . . . . . 11 3 27 . 8 Entropic 10 | . . . . . . . . . . 1 . 9 . . . . . . . . . Robot Hit Streak 26 | . 3 5 . . 9 7 10 4 6 21 2 26 8 17 14 . 14 12 19 16 21 Robot Miss Streak 7 | . 3 1 . . 2 3 4 1 1 5 7 3 3 1 . . 6 2 3 4 4 Penetration Max 3 | . . . . . 1 . 1 . . 2 . 3 . 1 . . 1 1 . . 1 Secondary Targets 8 | . . . . . . . . . . . . 1 . 1 . . 4 2 . . . Max Gunslinging Chain 1 | . . . . . . . . . . . . 1 . 1 . . 1 1 . . . Capacitor 29 | . . . . . . . . . . . . . . . . . . . . . 29 Shots Hit Robots 922 | . 11 11 . . 54 23 96 5 6 62 2 111 20 18 14 . 118 57 94 127 93 Core Hits 601 | . 6 3 . . 20 11 54 2 1 34 10 87 22 9 9 . 74 49 86 51 73 Critical Kills 91 | . . . . . 3 6 27 1 . 9 1 29 . . . . 3 5 . 2 5 Critical Parts Destroyed 130 | . . . . . 7 5 36 . 2 19 . 36 1 1 . . 16 4 . . 3 Critical Strikes 287 | . . . . . 13 14 63 3 2 37 1 73 2 1 5 . 28 10 11 16 8 Burn 20 | . . . . . . . . . . . . 1 1 . 5 . 8 1 4 . . Meltdown 6 | . . . . . . . . . . . . . . . . . . 1 . 2 3 Destroy 225 | . . . . . 4 14 63 3 2 37 1 66 1 1 . . 20 8 . . 5 Blast 21 | . . . . . . . . . . . . . . . . . . . 7 14 . Corrupt 1 | . . . . . 1 . . . . . . . . . . . . . . . . Smash 6 | . . . . . 6 . . . . . . . . . . . . . . . . Sever 2 | . . . . . 2 . . . . . . . . . . . . . . . . Sunder 6 | . . . . . . . . . . . . 6 . . . . . . . . . Melee Attacks 59 | . . . . . 38 . . . . 4 . . . . . . . . . 3 14 Kinetic 17 | . . . . . . . . . . . . . . . . . . . . 3 14 Impact 34 | . . . . . 30 . . . . 4 . . . . . . . . . . . Slashing 8 | . . . . . 8 . . . . . . . . . . . . . . . . Piercing . | . . . . . . . . . . . . . . . . . . . . . . Sneak Attacks 15 | . . . . . 10 . . . . . . . . . . . . . . . 5 Combat Hostiles . | . . . . . . . . . . . . . . . . . . . . . . Follow-up Attacks 7 | . . . . . 7 . . . . . . . . . . . . . . . . Damage Inflicted 52443 | . 117 113 . . 2725 461 2157 74 67 1969 938 4383 1811 711 431 . 5573 4906 5632 8938 11437 Guns 10493 | . 117 113 . . . . . . . 184 . 1079 332 673 431 . 3676 1311 431 1130 1016 Cannons 20996 | . . . . . 817 461 1951 74 67 729 29 1739 82 38 . . 477 1673 2877 5228 4754 Explosions 18390 | . . . . . . . 206 . . 1056 909 1565 1397 . . . 1420 1922 2324 2514 5077 Melee 2564 | . . . . . 1908 . . . . . . . . . . . . . . 66 590 Ramming . | . . . . . . . . . . . . . . . . . . . . . . Kinetic 17453 | . 117 113 . . 155 461 1872 74 67 913 29 1761 170 673 . . 2709 1153 1990 3590 1606 Thermal 20667 | . . . . . . . 79 . . . . 503 244 38 431 . 1444 3164 1572 4506 8686 Explosive 6639 | . . . . . . . 206 . . 1056 909 1465 1397 . . . 764 . . 842 . Electromagnetic 5222 | . . . . . 662 . . . . . . 100 . . . . 656 589 2070 . 1145 Impact 1675 | . . . . . 1675 . . . . . . . . . . . . . . . . Slashing 233 | . . . . . 233 . . . . . . . . . . . . . . . . Piercing . | . . . . . . . . . . . . . . . . . . . . . . Entropic 554 | . . . . . . . . . . . . 554 . . . . . . . . . Highest Corruption 25 | . . . . . 1 1 8 8 8 8 1 11 11 11 11 11 8 25 4 8 13 Average Corruption 7 | . . . . . 1 1 4 8 8 8 1 6 11 11 11 7 4 13 2 7 9 Corruption Purged 4 | . . . . . . . . . . . . . . . . 4 . . . . . Corruption Blocked . | . . . . . . . . . . . . . . . . . . . . . . Effects 332 | . . . . . 3 4 23 13 13 2 . 23 27 17 10 15 16 32 8 91 35 Message Errors 88 | . . . . . . 2 6 4 3 . . 11 7 6 2 3 5 7 . 23 9 Matter Fused 81 | . . . . . 1 1 8 4 4 . . 3 6 7 2 2 3 10 4 22 4 Heat Flow Errors 43 | . . . . . 2 . . 1 1 . . 1 6 . 1 3 1 5 1 12 9 Energy Discharges 29 | . . . . . . . 1 1 1 1 . 2 1 . 3 1 3 . 1 11 3 Parts Rejected 2 | . . . . . . . 1 . . . . . . . . . . . . . 1 Parts Fused 5 | . . . . . . . . 1 . . . . . . . 1 . 1 . 2 . Data Loss (minor) 27 | . . . . . . 1 . 1 1 . . 1 1 2 1 3 . 2 . 9 5 Data Loss (major) 16 | . . . . . . . 2 . . 1 . 1 1 1 . 2 3 . 1 4 . Misfires 17 | . . . . . . . 4 1 3 . . 2 1 1 . . . 1 1 1 2 Alerts 6 | . . . . . . . . . . . . . 1 . . . . . . 4 1 Misdirections 2 | . . . . . . . . . . . . . . . . . . 1 . . 1 Weapon Failures 16 | . . . . . . . 1 . . . . 2 3 . 1 . 1 5 . 3 . Overload Shots 7 | . . . . . . . . . . . . . . . . . . 5 2 . . Effects 3 | . . . . . . . . . . . . . . . . . . 2 1 . . Energy Bleed 2 | . . . . . . . . . . . . . . . . . . 1 1 . . Heat Surge 1 | . . . . . . . . . . . . . . . . . . 1 . . . Overflow Damage 3879 | . . . . . 777 . 6 . . 61 97 85 25 . . . 100 333 177 1063 1155 Projectiles 2238 | . . . . . . . 6 . . . . 24 . . . . 17 228 172 797 994 Explosions 795 | . . . . . . . . . . 61 97 61 25 . . . 83 105 5 266 92 Melee 846 | . . . . . 777 . . . . . . . . . . . . . . . 69 Knockbacks 60 | . . . . . 10 2 25 . 2 2 1 6 . . . . . . 10 2 . Impact 3 | . . . . . 3 . . . . . . . . . . . . . . . . Kinetic 53 | . . . . . 7 2 24 . 2 2 1 5 . . . . . . 8 2 . Secondary 4 | . . . . . . . 1 . . . . 1 . . . . . . 2 . . Self-Inflicted Damage 637 | . . . . . . . . . . 53 . 20 . . . . 12 152 117 176 107 Shots 34 | . . . . . . . . . . 1 . 1 . . . . 2 10 13 3 4 Rammed . | . . . . . . . . . . . . . . . . . . . . . . Targets Rammed . | . . . . . . . . . . . . . . . . . . . . . . Kicked . | . . . . . . . . . . . . . . . . . . . . . . Crushed . | . . . . . . . . . . . . . . . . . . . . . . Highest Temperature 775 | . 22 . . . 184 195 189 207 105 264 132 439 320 213 198 364 338 409 263 446 775 Average Temperature 97 | . 6 . . . 92 80 69 114 74 102 45 114 116 85 85 79 86 117 84 77 155 Received Heat Transfer 2749 | . 111 150 42 . 123 45 264 . . 90 . 199 23 105 . . 123 225 68 20 1161 Effects 15 | . . . . . . . . . . . . 1 . 1 . 1 . 4 . 4 4 Shutdowns 3 | . . . . . . . . . . . . . . . . 1 . 2 . . . Energy Bleed 3 | . . . . . . . . . . . . 1 . . . . . 1 . 1 . Interference 3 | . . . . . . . . . . . . . . 1 . . . . . 2 . Matter Decay 1 | . . . . . . . . . . . . . . . . . . 1 . . . Damage (minor) 2 | . . . . . . . . . . . . . . . . . . . . 1 1 Damage (major) 3 | . . . . . . . . . . . . . . . . . . . . . 3 Siege Activations . | . . . . . . . . . . . . . . . . . . . . . . Martial Activations . | . . . . . . . . . . . . . . . . . . . . . . Shielding Activations . | . . . . . . . . . . . . . . . . . . . . . . Robots Disrupted 2 | . . . . . . . . . . . . . . . . . . . . . 2 Combat Hostiles 2 | . . . . . . . . . . . . . . . . . . . . . 2 Robots Corrupted 26 | . . . . . 8 . . . . . . . . . . . 3 2 12 . 1 Combat Hostiles 21 | . . . . . 4 . . . . . . . . . . . 3 2 11 . 1 Parts Fried 59 | . . . . . 20 . . . . . . . . . . . 10 8 21 . . Impact Corruptions 19 | . . . . . 18 . . . . . . . . . . . . . 1 . . Robots Melted 8 | . . . . . . . . . . . . . . . . . . 1 . 4 3 Combat Hostiles 6 | . . . . . . . . . . . . . . . . . . 1 . 2 3 Parts Melted 39 | . . . . . 1 . . . . . . 3 . . 1 . 8 6 8 5 7 Heat Transferred 19597 | . . . . . . . 74 . . . . 683 474 37 1086 . 2794 2993 2014 3513 5929 Parts Sabotaged . | . . . . . . . . . . . . . . . . . . . . . . Parts Stolen . | . . . . . . . . . . . . . . . . . . . . . . Parts Stripped 68 | . . . . . . . . . . . . . . . . . . . . 33 35 Power Chain Reactions 9 | . . . . . . . . . . . . 2 . . . . 1 1 4 . 1 Alert | -11 -10 -10 -7 -7 -5 -5 -5 -5 -5 -5 -4 -4 -4 -4 -4 -3 -3 -3 -2 -2 -2 ------- Run | Yrd Mat Sub Rec Scr Fac Was Fac Upp Upp War Pro Fac Upp Upp Zhi Pro Res Tes Res Qua Frg Maximum Alert Level 4 | . . . . . 3 1 2 . . . . 4 . . . . 3 3 3 4 4 Low Security (%) 21 | 100 100 . 100 . 63 47 10 . . . . 34 . . . . 43 . 3 . . Level 1 13 | . . . . . 15 52 35 . . . . 3 . . . . 14 . 42 . . Level 2 24 | . . . . . . . 53 . . . . 25 . . . . 32 51 49 18 . Level 3 14 | . . . . . 21 . . . . . . 16 . . . . 8 48 3 3 63 Level 4 25 | . . . . . . . . . . . . 20 . . . . . . . 78 36 Level 5 . | . . . . . . . . . . . . . . . . . . . . . . High Security . | . . . . . . . . . . . . . . . . . . . . . . Max Security . | . . . . . . . . . . . . . . . . . . . . . . Peak Influence 1580 | . 40 . 83 . 846 277 616 . . . . 1240 . . . . 767 843 850 1580 1366 Initial 887 | . . . 33 . . 271 93 . . . . 200 . . . . . 427 438 475 887 Average 646 | . 9 . 51 . 229 206 408 . . . . 581 . . . . 304 616 415 1174 1051 Influence Increases 11568 | . 58 120 130 . 1122 112 1120 20 . 518 210 1878 110 90 15 . 1161 706 1064 1855 1279 Destroy 0b10 Robot/C 5280 | . 40 60 . . 360 40 520 20 . 380 180 760 100 80 . . 660 420 540 560 560 Destroy 0b10 Robot/NC 465 | . 5 . . . 65 . 65 . . 25 10 75 10 . 15 . 40 35 70 15 35 Destroy Leader 824 | . 10 . . . 72 . 98 . . . 20 154 . 10 . . 112 42 114 122 70 Allied During Kill 482 | . . . . . 105 20 165 . . 98 . 41 . . . . . . . . 53 Successful Hack 169 | . 3 . 25 . 7 . 7 . . . . 37 . . . . 72 . 4 . 14 Select Force Hacks 60 | . . . 60 . . . . . . . . . . . . . . . . . . Disable Machine 1320 | . . . . . 300 . 120 . . . . 210 . . . . 60 75 45 330 180 Anti-Garrison Action 150 | . . . . . . . . . . . . . . . . . . . . 150 . Destroy Structure 1903 | . . . . . 198 52 130 . . . . 226 . . . . 172 134 216 588 187 Advance Influence 150 | . . . . . . . . . . . . 150 . . . . . . . . . Partial Spotted 30 | . . . . . . . . . . . . . . . . . . . . 15 15 Lose Combat Pursuer 735 | . . 60 45 . 15 . 15 . . 15 . 225 . . . . 45 . 75 75 165 Influence Decreases 10202 | . 58 50 127 73 346 755 660 418 195 208 440 742 761 314 356 . 400 688 997 1123 1491 Entered New Map 3890 | . . . 37 73 . 505 40 220 38 . 310 30 451 108 341 . . 334 341 371 691 Time Decay 5162 | . 58 30 90 . 276 230 470 198 157 128 130 542 310 206 15 . 380 294 506 702 440 Lost Part 400 | . . 20 . . 10 . 20 . . . . 70 . . . . 20 60 . 50 150 Lost Ally 450 | . . . . . 60 20 130 . . 80 . 100 . . . . . . . . 60 Purge Threat 300 | . . . . . . . . . . . . . . . . . . . 150 . 150 Squads Dispatched 73 | . . . . . 8 . 10 . . . . 18 . . . . 8 6 10 6 7 Investigation 29 | . . . . . 5 . 5 . . . . 7 . . . . 3 1 4 1 3 Extermination 19 | . . . . . 1 . 3 . . . . 4 . . . . 3 2 3 2 1 Reinforcement 17 | . . . . . 1 . 1 . . . . 5 . . . . 2 3 2 1 2 Assault 6 | . . . . . . . . . . . . 2 . . . . . . 1 2 1 Garrison 2 | . . . . . 1 . 1 . . . . . . . . . . . . . . Intercept . | . . . . . . . . . . . . . . . . . . . . . . Searches Triggered . | . . . . . . . . . . . . . . . . . . . . . . Construction Impeded 5 | . . . . . 1 . . . . . . . . . . . 1 1 . 1 1 Haulers Reinforced 4 | . . . . . . . 1 . . . . 2 . . . . . 1 . . . Active Scanning Responses . | . . . . . . . . . . . . . . . . . . . . . . Cargo Convoy Interrupts 1 | . . . . . . . 1 . . . . . . . . . . . . . . Stealth | -11 -10 -10 -7 -7 -5 -5 -5 -5 -5 -5 -4 -4 -4 -4 -4 -3 -3 -3 -2 -2 -2 --------- Run | Yrd Mat Sub Rec Scr Fac Was Fac Upp Upp War Pro Fac Upp Upp Zhi Pro Res Tes Res Qua Frg Distress Signals 14 | . . . . . 1 . 1 . . . . 4 . . . . 2 . 2 . 4 Communications Jammed 2 | . . . . . . . . . . . 1 1 . . . . . . . . . Distress Signals 1 | . . . . . . . . . . . . 1 . . . . . . . . . Times Spotted 419 | . 3 9 2 . 26 7 27 1 . 76 7 61 8 4 . . 37 27 35 32 57 Peak Tracking Total 11 | . 3 6 2 . 4 2 6 . . 11 3 8 5 4 . . 5 9 7 4 11 Tactical Retreats 33 | . . 2 3 . 2 1 1 . . 1 . 8 . . . . 2 . 4 5 4 Traps | -11 -10 -10 -7 -7 -5 -5 -5 -5 -5 -5 -4 -4 -4 -4 -4 -3 -3 -3 -2 -2 -2 ------- Run | Yrd Mat Sub Rec Scr Fac Was Fac Upp Upp War Pro Fac Upp Upp Zhi Pro Res Tes Res Qua Frg Traps Triggered 27 | . . . . . 3 . 4 . . . . 7 . . . . 2 3 6 2 . Indirectly . | . . . . . . . . . . . . . . . . . . . . . . Trap Hack Attempts . | . . . . . . . . . . . . . . . . . . . . . . Triggered . | . . . . . . . . . . . . . . . . . . . . . . Disarmed . | . . . . . . . . . . . . . . . . . . . . . . Reprogrammed . | . . . . . . . . . . . . . . . . . . . . . . Reused . | . . . . . . . . . . . . . . . . . . . . . . Traps Extracted . | . . . . . . . . . . . . . . . . . . . . . . Installed 2 | . . . . . 2 . . . . . . . . . . . . . . . . Triggered . | . . . . . . . . . . . . . . . . . . . . . . Most Traps Carried 4 | . . . . 2 2 . . . . . . . 4 4 4 4 4 . . . . Machines | -11 -10 -10 -7 -7 -5 -5 -5 -5 -5 -5 -4 -4 -4 -4 -4 -3 -3 -3 -2 -2 -2 ---------- Run | Yrd Mat Sub Rec Scr Fac Was Fac Upp Upp War Pro Fac Upp Upp Zhi Pro Res Tes Res Qua Frg Machines Disabled 97 | . . . . . 20 . 8 . . 1 . 14 . . . . 4 6 3 23 18 Max in Single Turn 6 | . . . . . . . 3 . . 1 . 4 . . . . 1 1 1 6 4 Garrison Access 5 | . . . . . 1 . 2 . . . . 1 . . . . . . . 1 . Machines Repaired . | . . . . . . . . . . . . . . . . . . . . . . Machines Dismantled . | . . . . . . . . . . . . . . . . . . . . . . Machines Sabotaged . | . . . . . . . . . . . . . . . . . . . . . . Overloaded Fab Kills . | . . . . . . . . . . . . . . . . . . . . . . Hacking | -11 -10 -10 -7 -7 -5 -5 -5 -5 -5 -5 -4 -4 -4 -4 -4 -3 -3 -3 -2 -2 -2 --------- Run | Yrd Mat Sub Rec Scr Fac Was Fac Upp Upp War Pro Fac Upp Upp Zhi Pro Res Tes Res Qua Frg Machines Accessed 84 | . 2 . 6 4 9 . 10 . . 1 . 14 . . 4 . 9 1 9 10 5 Terminals 39 | . 2 . 4 . 3 . 3 . . . . 4 . . . . 6 1 6 8 2 Fabricators 3 | . . . . . . . 1 . . . . 2 . . . . . . . . . Repair Stations 1 | . . . . . . . . . . . . . . . . . . . . 1 . Recycling Units 26 | . . . 2 . 4 . 4 . . . . 7 . . . . 3 . 3 . 3 Scanalyzers 2 | . . . . . 1 . . . . . . . . . . . . . . 1 . Garrison Access 4 | . . . . . 1 . 2 . . . . 1 . . . . . . . . . Total Hacks 169 | . 3 . 13 10 15 . 19 . . 1 . 30 . . 17 . 18 2 16 16 9 Successful 92 | . 2 . 5 10 6 . 7 . . 1 . 16 . . 17 . 12 1 7 2 6 Failed 77 | . 1 . 8 . 9 . 12 . . . . 14 . . . . 6 1 9 14 3 Catastrophic 12 | . . . 1 . 2 . 2 . . . . 1 . . . . . 1 2 3 . Database Lockouts . | . . . . . . . . . . . . . . . . . . . . . . Manual 90 | . 1 . 11 . 10 . 10 . . . . 19 . . . . 10 1 10 11 7 Terminals 85 | . 3 . 10 . 7 . 6 . . . . 14 . . . . 15 2 12 12 4 Fabricators 7 | . . . . . . . 2 . . . . 5 . . . . . . . . . Repair Stations 2 | . . . . . . . . . . . . . . . . . . . . 2 . Recycling Units 35 | . . . 3 . 5 . 6 . . . . 9 . . . . 3 . 4 . 5 Scanalyzers 4 | . . . . . 2 . . . . . . . . . . . . . . 2 . Garrison Access 8 | . . . . . 1 . 5 . . . . 2 . . . . . . . . . Terminal Hacks 52 | . 1 . 2 10 1 . 1 . . 1 . 5 . . 17 . 7 1 4 . 2 Record 14 | . . . . 9 . . . . . . . . . . 5 . . . . . . Part Schematic 6 | . . . . . . . 1 . . . . 1 . . 4 . . . . . . Robot Analysis 6 | . 1 . . . . . . . . . . . . . 4 . 1 . . . . Prototype ID Bank 5 | . . . 1 . . . . . . . . . . . 4 . . . . . . Open Door 2 | . . . . . . . . . . 1 . . . . . . . . 1 . . Branch Access Points 4 | . . . . . 1 . . . . . . 1 . . . . 1 . 1 . . Terminal Index 2 | . . . . . . . . . . . . 1 . . . . 1 . . . . Alert Level 4 | . . . . . . . . . . . . . . . . . 1 1 1 . 1 Unreport Threat 2 | . . . . . . . . . . . . . . . . . . . 1 . 1 Locate Traps 2 | . . . . . . . . . . . . . . . . . 2 . . . . Recall Investigation 1 | . . . . . . . . . . . . . . . . . 1 . . . . Recall Extermination 1 | . . . . . . . . . . . . 1 . . . . . . . . . Zone Layout 2 | . . . 1 . . . . . . . . 1 . . . . . . . . . Proto ID Catalog 1 | . . . . 1 . . . . . . . . . . . . . . . . . Fabricator Hacks 1 | . . . . . . . . . . . . 1 . . . . . . . . . Load Schematic 1 | . . . . . . . . . . . . 1 . . . . . . . . . Repair Station Hacks 1 | . . . . . . . . . . . . . . . . . . . . 1 . Scan Component 1 | . . . . . . . . . . . . . . . . . . . . 1 . Recycling Unit Hacks . | . . . . . . . . . . . . . . . . . . . . . . Scanalyzer 1 | . . . . . . . . . . . . . . . . . . . . 1 . Insert Component 1 | . . . . . . . . . . . . . . . . . . . . 1 . Garrison Access Hacks 4 | . . . . . 1 . 2 . . . . 1 . . . . . . . . . Seal Access 4 | . . . . . 1 . 2 . . . . 1 . . . . . . . . . Unauthorized Hacks 33 | . 1 . 3 . 4 . 4 . . . . 9 . . . . 5 . 3 . 4 Terminals 8 | . 1 . 1 . . . 1 . . . . 2 . . . . 2 . . . 1 Track 1 | . 1 . . . . . . . . . . . . . . . . . . . . Botnet 6 | . . . . . . . 1 . . . . 2 . . . . 2 . . . 1 Skim 1 | . . . 1 . . . . . . . . . . . . . . . . . . Fabricators . | . . . . . . . . . . . . . . . . . . . . . . Repair Stations . | . . . . . . . . . . . . . . . . . . . . . . Recycling Units 25 | . . . 2 . 4 . 3 . . . . 7 . . . . 3 . 3 . 3 Tunnel 2 | . . . 2 . . . . . . . . . . . . . . . . . . Fedlink 21 | . . . . . 4 . 3 . . . . 6 . . . . 3 . 3 . 2 Scrapoids 2 | . . . . . . . . . . . . 1 . . . . . . . . 1 Scanalyzers . | . . . . . . . . . . . . . . . . . . . . . . Garrison Access . | . . . . . . . . . . . . . . . . . . . . . . Data Cores Recovered 1 | . . . . . . . . . . . . . . . . . . . 1 . . Used 1 | . . . . . . . . . . . . . . . . . . . 1 . . Hacking Detections 50 | . 1 . 4 . 5 . 6 . . . . 7 . . . . 6 1 6 10 4 Full Trace Events 3 | . . . 1 . 1 . 1 . . . . . . . . . . . . . . Feedback Events 1 | . . . . . 1 . . . . . . . . . . . . . . . . Corruption 1 | . . . . . 1 . . . . . . . . . . . . . . . . Feedback Blocked . | . . . . . . . . . . . . . . . . . . . . . . Robot Schematics Acquired 1 | . . . . . . . . . . . . . . . . . . . . 1 . Robots Built . | . . . . . . . . . . . . . . . . . . . . . . Authchips . | . . . . . . . . . . . . . . . . . . . . . . Time . | . . . . . . . . . . . . . . . . . . . . . . Total Robot Build Rating . | . . . . . . . . . . . . . . . . . . . . . . Part Schematics Acquired 10 | . . . . . . . 1 . . . . 1 . . 4 . . . . 4 . Parts Built . | . . . . . . . . . . . . . . . . . . . . . . Authchips . | . . . . . . . . . . . . . . . . . . . . . . Time . | . . . . . . . . . . . . . . . . . . . . . . Total Part Build Rating . | . . . . . . . . . . . . . . . . . . . . . . Part Studies Acquired . | . . . . . . . . . . . . . . . . . . . . . . Parts Repaired . | . . . . . . . . . . . . . . . . . . . . . . Time . | . . . . . . . . . . . . . . . . . . . . . . Parts Recycled . | . . . . . . . . . . . . . . . . . . . . . . Recycled Matter . | . . . . . . . . . . . . . . . . . . . . . . Retrieved Matter . | . . . . . . . . . . . . . . . . . . . . . . Retrieved Components . | . . . . . . . . . . . . . . . . . . . . . . Parts Scanalyzed . | . . . . . . . . . . . . . . . . . . . . . . Part Schematics Acquired . | . . . . . . . . . . . . . . . . . . . . . . Parts Damaged . | . . . . . . . . . . . . . . . . . . . . . . Bothacking | -11 -10 -10 -7 -7 -5 -5 -5 -5 -5 -5 -4 -4 -4 -4 -4 -3 -3 -3 -2 -2 -2 ------------ Run | Yrd Mat Sub Rec Scr Fac Was Fac Upp Upp War Pro Fac Upp Upp Zhi Pro Res Tes Res Qua Frg Used RIF Installer . | . . . . . . . . . . . . . . . . . . . . . . Robots Hacked . | . . . . . . . . . . . . . . . . . . . . . . Non-combat . | . . . . . . . . . . . . . . . . . . . . . . Combat . | . . . . . . . . . . . . . . . . . . . . . . Robot Hacks Applied . | . . . . . . . . . . . . . . . . . . . . . . Relay Couplers Released 2 | . . . . . . . . . . . . . . . . . . . . 2 . Machine Destruction 2 | . . . . . . . . . . . . . . . . . . . . 2 . Fabnet Peak Effective % . | . . . . . . . . . . . . . . . . . . . . . . Robots Rewired 5 | . . . . . . . . . . 5 . . . . . . . . . . . Allies Hacked . | . . . . . . . . . . . . . . . . . . . . . . Hacks Repelled . | . . . . . . . . . . . . . . . . . . . . . . Allies | -11 -10 -10 -7 -7 -5 -5 -5 -5 -5 -5 -4 -4 -4 -4 -4 -3 -3 -3 -2 -2 -2 -------- Run | Yrd Mat Sub Rec Scr Fac Was Fac Upp Upp War Pro Fac Upp Upp Zhi Pro Res Tes Res Qua Frg Total Allies 39 | . . . . . 5 19 . . . 5 . 5 . . . . . . . . 5 Largest Group 19 | . . . . . 5 19 10 . . 5 1 5 . . . . . . . . 5 Highest-Rated Group 702 | . . . . . 241 702 377 . . 262 64 235 . . . . . . . . 326 Highest-Rated Ally 68 | . . . . . 50 50 46 . . 68 64 47 . . . . . . . . 67 Initial UFD Resources 120 | . . . . . 38 56 56 62 62 62 64 64 83 83 83 86 86 102 104 120 120 Total Orders 22 | . . . . . . . . . . 22 . . . . . . . . . . . STAY 10 | . . . . . . . . . . 10 . . . . . . . . . . . FOLLOW 7 | . . . . . . . . . . 7 . . . . . . . . . . . AID 5 | . . . . . . . . . . 5 . . . . . . . . . . . Ally Attacks 264 | . . . . . 57 72 50 . . 22 . 31 . . . . . . . . 32 Total Damage 7726 | . . . . . 1583 2543 1158 . . 1230 . 496 . . . . . . . . 716 Kills 35 | . . . . . 10 9 7 . . 7 . . . . . . . . . . 2 Allies Corrupted 2 | . . . . . 1 . 1 . . . . . . . . . . . . . . Allies Melted 1 | . . . . . . . . . . 1 . . . . . . . . . . . Intel | -11 -10 -10 -7 -7 -5 -5 -5 -5 -5 -5 -4 -4 -4 -4 -4 -3 -3 -3 -2 -2 -2 ------- Run | Yrd Mat Sub Rec Scr Fac Was Fac Upp Upp War Pro Fac Upp Upp Zhi Pro Res Tes Res Qua Frg Active Infowar (turns) 13083 | . . . . . 290 492 1059 389 551 925 313 1279 693 387 183 461 880 514 1093 3027 547 Sensors 12483 | . . . . . 290 492 1059 389 551 925 296 1247 693 387 183 461 859 512 1093 2499 547 Terrain 3961 | . . . . . . . . . . . . . . . . . 725 304 . 2575 357 Jamming 49 | . . . . . . . . . . . 17 32 . . . . . . . . . Robot Analysis Total 6 | . 1 . . . . . . . . . . . . . 4 . 1 . . . . Derelict Logs Recovered 3 | . . . . . . . . 2 . . . . . 1 . . . . . . . Drone Launches . | . . . . . . . . . . . . . . . . . . . . . . Drone Recoveries . | . . . . . . . . . . . . . . . . . . . . . . Exploration | -11 -10 -10 -7 -7 -5 -5 -5 -5 -5 -5 -4 -4 -4 -4 -4 -3 -3 -3 -2 -2 -2 ------------- Run | Yrd Mat Sub Rec Scr Fac Was Fac Upp Upp War Pro Fac Upp Upp Zhi Pro Res Tes Res Qua Frg Turns Passed 17890 | 26 256 68 192 1509 1076 492 1191 413 551 1271 313 1545 693 432 183 461 1074 641 1374 3032 1097 Spaces Moved 13581 | 35 190 35 361 1596 761 396 941 438 550 1038 289 1139 596 447 171 409 675 288 780 1659 787 Core 1068 | 35 166 23 361 483 . . . . . . . . . . . . . . . . . Treads 36 | . 24 12 . . . . . . . . . . . . . . . . . . . Legs . | . . . . . . . . . . . . . . . . . . . . . . Wheels 12136 | . . . . 1113 761 396 941 438 550 1038 289 1139 596 447 171 409 675 288 780 1659 446 Hover . | . . . . . . . . . . . . . . . . . . . . . . Flight 341 | . . . . . . . . . . . . . . . . . . . . . 341 Fastest Speed 22 | 50 50 50 50 50 90 90 90 90 90 90 90 80 90 90 80 90 90 90 100 100 22 Average Speed 95 | 50 63 104 50 91 108 90 90 90 90 90 90 89 90 90 82 90 90 91 106 129 91 Slowest Speed 320 | 50 160 160 50 115 145 90 90 90 90 90 90 110 90 90 90 90 90 100 110 150 320 Overloaded Moves 37 | . . . . . . . . . . . . . . . . . . . . . 37 Propulsion Burnouts . | . . . . . . . . . . . . . . . . . . . . . . Robots Hopped 2 | . . . . . . . . . . . . . . . . . . . . . 2 Potential Cave-ins 22 | . . . . . . . . . . . . 3 . . . . . . 9 7 3 Cave-ins Triggered 1 | . . . . . . . . . . . . . . . . . . . . 1 . Teleports 3 | . . . . . . . . . . . . . . . . . . . . 2 1 Exploration Rate (%) 50 | 3 25 5 90 87 19 89 23 65 71 87 54 34 64 66 60 50 22 33 29 95 36 Regions Visited 21 Branch Regions 14 Pre-discovered Areas 7 | . . . 2 . 1 . . 1 . . . . . . 3 . . . . . . Known Exits Taken 14 | . . . . . . . 1 1 1 1 1 1 1 1 1 1 1 1 1 1 . Unknown Exits Taken 5 | 1 1 1 1 1 . . . . . . . . . . . . . . . . . Scrap Searched 14 | . . . . 3 . . . 2 . . 1 . 3 3 . 2 . . . . . Spaces Dug 270 | . . . . . 3 . 19 . . 4 40 23 11 . . 3 76 2 29 39 21 Terrain Destroyed 1168 | . . . . . 3 . 70 . . 37 132 112 137 10 . 8 134 76 92 254 103 Melee 7 | . . . . . 3 . . . . 4 . . . . . . . . . . . Projectile 414 | . . . . . . . 24 . . 3 . 54 32 9 . 8 82 19 68 87 28 AOE 745 | . . . . . . . 46 . . 30 132 58 105 . . . 51 57 24 167 75 Terrain Rammed . | . . . . . . . . . . . . . . . . . . . . . . Walls Destroyed . | . . . . . . . . . . . . . . . . . . . . . . Machines Disabled . | . . . . . . . . . . . . . . . . . . . . . . Actions | -11 -10 -10 -7 -7 -5 -5 -5 -5 -5 -5 -4 -4 -4 -4 -4 -3 -3 -3 -2 -2 -2 --------- Run | Yrd Mat Sub Rec Scr Fac Was Fac Upp Upp War Pro Fac Upp Upp Zhi Pro Res Tes Res Qua Frg Total 17159 | 41 308 51 374 1639 930 499 1132 451 601 1268 321 1481 719 465 206 493 1017 590 1165 2346 1062 Wait 1702 | . 94 8 2 19 55 74 65 9 48 68 9 78 57 7 1 73 142 159 219 431 84 Move 13556 | 34 189 34 360 1595 761 395 940 437 549 1037 288 1138 595 446 170 408 674 287 779 1657 783 Hop 2 | . . . . . . . . . . . . . . . . . . . . . 2 Pick Up 176 | 4 6 . 3 17 19 2 3 1 2 10 4 20 9 . 1 . 15 16 5 26 13 Fast Attach 71 | 3 2 . 2 1 6 1 4 . . 4 . 7 1 . 5 1 1 3 4 14 12 Attach 105 | . . . . 3 7 . 2 . . . 1 16 3 . . . 7 13 3 22 28 Detach 30 | . . . . 1 . . . . . 1 . 1 . . 1 . . 5 1 10 10 Swap 259 | . . . . . 9 10 25 2 . 32 2 43 6 2 3 1 45 20 28 19 12 Drop 210 | . 5 . 7 3 11 4 11 . . 17 5 25 10 . 10 1 12 17 12 35 25 Fire 941 | . 12 9 . . 26 13 82 2 2 63 12 145 38 10 15 8 113 70 114 128 79 Melee 47 | . . . . . 26 . . . . 4 . . . . . . . . . 3 14 Ram . | . . . . . . . . . . . . . . . . . . . . . . Kick . | . . . . . . . . . . . . . . . . . . . . . . Crush . | . . . . . . . . . . . . . . . . . . . . . . Escape Stasis 25 | . . . . . 8 . . . . . . 8 . . . . 8 . . 1 . Rewire 32 | . . . . . . . . . . 32 . . . . . . . . . . . Trap 2 | . . . . . 2 . . . . . . . . . . . . . . . . Miscellaneous 1 | . . . . . . . . . . . . . . . . 1 . . . . . Route ------- -11/Scrapyard -10/Materials -10/Subcaves -7/Recycling (discovered 2 exits: *Fac / *Scr) -7/Scraptown -5/Factory (discovered 2 exits: Upp x2) -5/Waste -5/Factory -5/Upper Caves (discovered 2 exits: *Upp / *War) -5/Upper Caves -5/Warlord -4/Proximity Caves -4/Factory (discovered 3 exits: *Upp x2 / Arm) -4/Upper Caves -4/Upper Caves -4/Zhirov -3/Proximity Caves -3/Research (discovered 2 exits: *Tes x2) -3/Testing -2/Research (discovered 3 exits: [*Acc] / *Qua x2) -2/Quarantine (discovered 3 exits: [Acc] / *Sec / *Frg) -2/Protoforge History --------- Turn | Location | Event 17 | -11/Scrapyard | Discovered new exit (range 16) 27 | -11/Scrapyard | Entered Materials 268 | -10/Materials | Discovered new exit (range 5) 283 | -10/Materials | Entered Subcaves 300 | -10/Subcaves | Build established: Mutant 343 | -10/Subcaves | Discovered new exit (range 16) 351 | -10/Subcaves | Entered Recycling 456 | -7/Recycling | Core integrity fell below 50% 498 | -7/Recycling | Discovered new exit (range 16) 530 | -7/Recycling | Scanned before Scraplab entrance 538 | -7/Recycling | Entered Scraplab 542 | -7/Recycling | Discovered new exit (range 3) 543 | -7/Recycling | Entered Scraptown 566 | -7/Scraptown | Visited Assassins FH 577 | -7/Scraptown | Visited Comm Corps 585 | -7/Scraptown | Visited Symbiants 601 | -7/Scraptown | Visited Shadow of the Wyrm 608 | -7/Scraptown | Visited Fellowship of the Rings 608 | -7/Scraptown | Heard Great Nut preacher, LISTEN AND RECITE! 618 | -7/Scraptown | Visited CPS Storage 622 | -7/Scraptown | Visited Cyclists 641 | -7/Scraptown | Visited UFD Registry 648 | -7/Scraptown | Registered with UFD as "Carbonrigger" 668 | -7/Scraptown | Visited Research Penetration Think Tank 680 | -7/Scraptown | Visited Abandonware Association 686 | -7/Scraptown | Learned abandonware demo "MELTYB.EXE" 686 | -7/Scraptown | Learned abandonware demo "REBOOT5.EXE" 700 | -7/Scraptown | Visited Derelict Rescue Squad 708 | -7/Scraptown | Visited A0-MCA Data Center 720 | -7/Scraptown | Visited Scrapoid Pod Storage 727 | -7/Scraptown | Visited Science Testing Area 735 | -7/Scraptown | Visited Scrap Suit Storage 746 | -7/Scraptown | Visited Science Guys 762 | -7/Scraptown | Visited Observation Area 790 | -7/Scraptown | Found Scrapoid Pod 1537 | -7/Scraptown | Given a C rating by A0-MCA 1541 | -7/Scraptown | Found A0-MCA's Component Scanner 1578 | -7/Scraptown | Found DRS Beacon 1681 | -7/Scraptown | Entered Cyclist Reading Room 1866 | -7/Scraptown | Discovered new exit (range 5) 1900 | -7/Scraptown | Found Scrap Suit 1903 | -7/Scraptown | Found Scrap Suit 1993 | -7/Scraptown | Met Optimus 1993 | -7/Scraptown | Accepted into 0bPrime 2052 | -7/Scraptown | Entered Factory 2052 | -5/Factory | Evolved 10 slots: Power x1, Propulsion x2, Utility x6, Weapon x1 2392 | -5/Factory | Loaded intel: 8 recycling unit locations 2622 | -5/Factory | Learned location of Protoforge (-2) 2675 | -5/Factory | Scrapoid Pod released 05F05-D (x5) 2692 | -5/Factory | Found Prototype Processor 2692 | -5/Factory | Identified Exp. Targeting Computer 2696 | -5/Factory | Attached CPS modules to 05F02-D. 2698 | -5/Factory | Attached CPS modules to 05F04-D. 2712 | -5/Factory | Found Exp. Targeting Computer 2716 | -5/Factory | Found Exp. Targeting Computer 2804 | -5/Factory | Identified exit to Upper Caves 2927 | -5/Factory | Lost 3 allies 3056 | -5/Factory | Assembled infested ambush trap array 3079 | -5/Factory | Garrison activated, responded to threat 3128 | -5/Factory | Sucked down chute 3128 | -5/Factory | Entered Waste 3153 | -5/Waste | Spotted C-40 Crusher 3157 | -5/Waste | Build established: Scrapper 3159 | -5/Waste | Destroyed C-40 Crusher 3161 | -5/Waste | Spotted C-40 Crusher 3166 | -5/Waste | Destroyed C-40 Crusher 3206 | -5/Waste | Warlord forces began an assault 3240 | -5/Waste | Spotted C-40 Crusher 3243 | -5/Waste | Allies destroyed C-40 Crusher 3266 | -5/Waste | Spotted C-40 Crusher 3271 | -5/Waste | Allies destroyed C-40 Crusher 3273 | -5/Waste | Lost 7 allies 3283 | -5/Waste | Spotted C-40 Crusher 3286 | -5/Waste | Destroyed C-40 Crusher 3366 | -5/Waste | Discovered new exit (range 12) 3577 | -5/Waste | Identified exit to Factory 3620 | -5/Waste | Entered Factory 3620 | -5/Factory | Accompanied by 10 allies 3739 | -5/Factory | Lost 3 allies 3935 | -5/Factory | Garrison activated, responded to threat 3968 | -5/Factory | Discovered exit to Upper Caves (range 15) 3980 | -5/Factory | Lost 4 allies 3990 | -5/Factory | Destroyed 7 combat bots 4190 | -5/Factory | Loaded intel: 8 recycling unit locations 4397 | -5/Factory | Cargo convoy interrupted 4811 | -5/Factory | Entered Upper Caves 4833 | -5/Upper Caves | A Derelict revealed a hidden shortcut to "reach the base" 4836 | -5/Upper Caves | Identified exit to Warlord 5023 | -5/Upper Caves | Learned Factory garrison access intel 5079 | -5/Upper Caves | Attracted the attention of an 0b10 checkpoint 5147 | -5/Upper Caves | Encountered a Warlord checkpoint 5151 | -5/Upper Caves | Discovered new exit (range 9) 5159 | -5/Upper Caves | Identified exit to Upper Caves 5224 | -5/Upper Caves | Entered another Upper Caves area 5646 | -5/Upper Caves | Discovered exit to Warlord (range 15) 5775 | -5/Upper Caves | Entered Warlord 5805 | -5/Warlord | System corruption cleaned by Quarantine Array 6232 | -5/Warlord | Warlord's base attacked by MAIN.C 6236 | -5/Warlord | Build established: Commander-Scrapper 6376 | -5/Warlord | Found Prototype Energy Cannon 6378 | -5/Warlord | Found Prototype Energy Cannon 6517 | -5/Warlord | Identified Vortex Cannon (x2) 6582 | -5/Warlord | Warlord forces counterattacked 6586 | -5/Warlord | Lost 3 allies 6587 | -5/Warlord | Spotted B-75 Beast 6598 | -5/Warlord | Spotted B-86 Titan 6634 | -5/Warlord | Spotted B-86 Titan 6679 | -5/Warlord | Lost 13 allies 6741 | -5/Warlord | Found Prototype Reactor 6745 | -5/Warlord | Found Exp. Targeting Computer 6759 | -5/Warlord | Found Prototype Processor 6759 | -5/Warlord | Identified Exp. Target Analyzer 6768 | -5/Warlord | Rebuked by Warlord 6907 | -5/Warlord | Warlord base infiltrated, sounded retreat 6934 | -5/Warlord | Spotted Striker 6957 | -5/Warlord | Spotted Striker 6959 | -5/Warlord | Destroyed Striker 6965 | -5/Warlord | Destroyed Executioner 6983 | -5/Warlord | Lost 5 allies 6994 | -5/Warlord | Spotted Striker 7000 | -5/Warlord | Found Prototype Launcher 7000 | -5/Warlord | Identified Chain Missile Launcher 7026 | -5/Warlord | Discovered new exit (range 15) 7041 | -5/Warlord | Identified exit to Proximity Caves 7046 | -5/Warlord | Entered Proximity Caves 7046 | -4/Proximity Caves | Accompanied by 1 ally 7055 | -4/Proximity Caves | Spotter reported a threat 7234 | -4/Proximity Caves | Build established: Scavenger-Scrapper 7344 | -4/Proximity Caves | Discovered new exit (range 15) 7359 | -4/Proximity Caves | Ambushed by research squad 7359 | -4/Proximity Caves | Identified exit to Factory 7359 | -4/Proximity Caves | Entered Factory 7359 | -4/Factory | Evolved 2 slots: Utility x2 7360 | -4/Factory | Loaded intel: 4 garrison access locations 7426 | -4/Factory | Loaded intel: 8 recycling unit locations 7820 | -4/Factory | Found Prototype Device 7820 | -4/Factory | Identified Adv. EM Shield 8087 | -4/Factory | Lost 3 parts (2p1w) 8275 | -4/Factory | Build established: Hacker-Scrapper 8359 | -4/Factory | Identified exit to Upper Caves 8359 | -4/Factory | Identified exit to Armory 8533 | -4/Factory | Scrapoids reinforcements arrived? 8563 | -4/Factory | Attached CPS modules to 04F10-D. 8565 | -4/Factory | Attached CPS modules to 04F07-D. 8609 | -4/Factory | First assault squad dispatched 8612 | -4/Factory | Destroyed 9 combat bots 8617 | -4/Factory | Lost 5 allies 8618 | -4/Factory | Found Scrap Suit 8622 | -4/Factory | Found Scrap Suit 8653 | -4/Factory | System corruption reached 10% 8904 | -4/Factory | Entered Upper Caves 8919 | -4/Upper Caves | Build established: Scavenger-Scrapper 8943 | -4/Upper Caves | Encountered an infested base 9060 | -4/Upper Caves | Found Imp. Powered Armor 9584 | -4/Upper Caves | Discovered new exit (range 15) 9596 | -4/Upper Caves | Identified exit to Upper Caves 9597 | -4/Upper Caves | Entered another Upper Caves area 9899 | -4/Upper Caves | Learned Research garrison access intel 9970 | -4/Upper Caves | Discovered new exit (range 7) 9974 | -4/Upper Caves | Identified exit to Zhirov 10029 | -4/Upper Caves | Entered Zhirov 10029 | -4/Zhirov | Discovered new exit (range 3) 10047 | -4/Zhirov | Met Zhirov 10064 | -4/Zhirov | Learned location of Quarantine (-2) 10064 | -4/Zhirov | Learned location of Testing (-3) 10064 | -4/Zhirov | Learned location of Command (-1) 10069 | -4/Zhirov | Zhirov requested help retrieving the SGEMP Prototype 10081 | -4/Zhirov | Found Alien Artifact 10081 | -4/Zhirov | Identified Integrated Dissipator 10081 | -4/Zhirov | Installed Integrated Dissipator, increased core heat dissipation (+20) 10180 | -4/Zhirov | Found Alien Artifact 10211 | -4/Zhirov | Identified exit to Proximity Caves 10212 | -4/Zhirov | Entered Proximity Caves 10217 | -3/Proximity Caves | Activated DRS Beacon 10334 | -3/Proximity Caves | Build established: Hacker-Scrapper 10663 | -3/Proximity Caves | Discovered new exit (range 10) 10671 | -3/Proximity Caves | Identified exit to Research 10673 | -3/Proximity Caves | Entered Research 10673 | -3/Research | Evolved 2 slots: Utility x2 10674 | -3/Research | Loaded intel: 4 garrison access locations 10690 | -3/Research | Found Quantum Capacitor 10819 | -3/Research | Identified Vortex Chain Reactor 10942 | -3/Research | Found Adv. Powered Armor 11034 | -3/Research | Identified exit to Testing 11039 | -3/Research | Loaded intel: 5 recycling unit locations 11156 | -3/Research | Found Gamma Bomb Array 11570 | -3/Research | Spotted B-86 Titan 11683 | -3/Research | Destroyed 8 combat bots 11747 | -3/Research | Entered Testing 11777 | -3/Testing | Found Prototype Energy Cannon 11866 | -3/Testing | Spotted PH-1KETD98MUJ 11883 | -3/Testing | Identified Potential Cannon 11898 | -3/Testing | Destroyed PH-1KETD98MUJ 11909 | -3/Testing | Found Prototype Protection 11917 | -3/Testing | Identified Centrium Heavy Armor Plating 11949 | -3/Testing | Found Prototype Energy Cannon 11949 | -3/Testing | Identified Cld. Nova Cannon 12081 | -3/Testing | System corruption reached 10% 12126 | -3/Testing | Destroyed 11 combat bots 12219 | -3/Testing | Destroyed 7 combat bots 12221 | -3/Testing | Lost 3 parts (1u2w) 12267 | -3/Testing | Found Prototype Processor 12314 | -3/Testing | Identified Exp. Signal Interpreter 12373 | -3/Testing | Discovered new exit (range 14) 12385 | -3/Testing | Identified exit to Research 12388 | -3/Testing | Entered Research 12388 | -2/Research | Evolved 2 slots: Power x1, Weapon x1 12402 | -2/Research | Identified exit to Quarantine 13125 | -2/Research | Build established: Hacker-Gunner 13185 | -2/Research | Loaded intel: 5 recycling unit locations 13388 | -2/Research | First assault squad dispatched 13607 | -2/Research | Discovered new exit (range 9) 13753 | -2/Research | Destroyed 7 combat bots 13762 | -2/Research | Entered Quarantine 13839 | -2/Quarantine | Found Alien Reactor 14273 | -2/Quarantine | Crushed by falling debris 14382 | -2/Quarantine | Cryocooling Duct disabled 14385 | -2/Quarantine | Cryocooling Duct disabled 14397 | -2/Quarantine | Ambient heat levels rising (+20) 14397 | -2/Quarantine | Non-combat units ordered to evacuate 14400 | -2/Quarantine | Ambient heat levels rising (+20) 14400 | -2/Quarantine | Combat units ordered to evacuate 14500 | -2/Quarantine | Quarantine Guard activated 14573 | -2/Quarantine | Build established: Hacker-Skirmisher 14702 | -2/Quarantine | Spotted Quarantine Guard 14725 | -2/Quarantine | Destroyed Quarantine Guard 14821 | -2/Quarantine | Found Alien Artifact 14830 | -2/Quarantine | Found Alien Artifact 14830 | -2/Quarantine | Identified Dimensional Node Initializer 14830 | -2/Quarantine | Initialized slip node 14838 | -2/Quarantine | Found Dimensional Node Initializer 14917 | -2/Quarantine | Discovered new exit (range 19) 14931 | -2/Quarantine | Spotted Quarantine Guard 14954 | -2/Quarantine | Destroyed Quarantine Guard 15152 | -2/Quarantine | Spotted Quarantine Guard 15171 | -2/Quarantine | Destroyed Quarantine Guard 15273 | -2/Quarantine | Spotted Quarantine Guard 15320 | -2/Quarantine | Destroyed Quarantine Guard 15620 | -2/Quarantine | Build established: Skirmisher 15694 | -2/Quarantine | Spotted Quarantine Guard 15734 | -2/Quarantine | Destroyed Quarantine Guard 15763 | -2/Quarantine | Identified Transdimensional Reconstructor (x2) 15763 | -2/Quarantine | Warped through subspace to slip node 15774 | -2/Quarantine | Found Alien Artifact 16095 | -2/Quarantine | Found Alien Impact Weapon 16095 | -2/Quarantine | Identified Core Stripper 16129 | -2/Quarantine | Found Heavy Servo Lattice 16133 | -2/Quarantine | Spotted Quarantine Guard 16153 | -2/Quarantine | Destroyed Quarantine Guard 16194 | -2/Quarantine | Found Enh. Gamma Bomb Array 16229 | -2/Quarantine | Found Alien Artifact 16231 | -2/Quarantine | Identified Subatomic Replicator 16231 | -2/Quarantine | Used Subatomic Replicator to create Alien Artifact 16303 | -2/Quarantine | Identified Supercharged TR 16327 | -2/Quarantine | Identified Hpw. Transdimensional Reconstructor 16327 | -2/Quarantine | Warped through subspace to slip node 16339 | -2/Quarantine | Found Hpw. Transdimensional Reconstructor 16404 | -2/Quarantine | Build established: Assassin 16497 | -2/Quarantine | Spotted Fortress 16507 | -2/Quarantine | Destroyed Fortress 16526 | -2/Quarantine | Found Exp. Force Field 16532 | -2/Quarantine | Found Vortex Chain Reactor 16536 | -2/Quarantine | Found Centrium Heavy Armor Plating 16708 | -2/Quarantine | Discovered new exit (range 6) 16708 | -2/Quarantine | Spotted Quarantine Guard 16720 | -2/Quarantine | Discovered new exit (range 8) 16720 | -2/Quarantine | Spotted Quarantine Guard 16734 | -2/Quarantine | Destroyed Quarantine Guard 16745 | -2/Quarantine | Destroyed Quarantine Guard 16787 | -2/Quarantine | Identified exit to Section 7 16793 | -2/Quarantine | Identified exit to Protoforge 16794 | -2/Quarantine | Entered Protoforge 16890 | -2/Protoforge | Spotted Hotshot 16891 | -2/Protoforge | Destroyed Hotshot 16891 | -2/Protoforge | Spotted Hotshot 16893 | -2/Protoforge | Superfortress began startup sequence 16906 | -2/Protoforge | Destroyed Hotshot 17044 | -2/Protoforge | First assault squad dispatched 17161 | -2/Protoforge | Spotted EXE-6 17161 | -2/Protoforge | Spotted EXE-6 17168 | -2/Protoforge | Destroyed EXE-6 17171 | -2/Protoforge | Destroyed EXE-6 17186 | -2/Protoforge | Spotted SKR-2 17186 | -2/Protoforge | Spotted SKR-2 17186 | -2/Protoforge | Spotted SKR-2 17189 | -2/Protoforge | Destroyed SKR-2 17191 | -2/Protoforge | Destroyed SKR-2 17192 | -2/Protoforge | Destroyed SKR-2 17332 | -2/Protoforge | UFD initiated attack on Protoforge (Readiness: Maximal) 17332 | -2/Protoforge | Loaded intel: 3 recycling unit locations 17394 | -2/Protoforge | Scrapoids reinforcements arrived? 17415 | -2/Protoforge | Attached CPS modules to 02F39-D. 17428 | -2/Protoforge | Found Scrap Suit 17447 | -2/Protoforge | Optimus greeted in Protoforge 17452 | -2/Protoforge | Forge Plexus network access discovered 17460 | -2/Protoforge | Initialized slip node 17471 | -2/Protoforge | Spotted Decapitator 17475 | -2/Protoforge | Spotted Decapitator 17477 | -2/Protoforge | Spotted Decapitator 17485 | -2/Protoforge | Allies destroyed 02F04-K 17503 | -2/Protoforge | Found Exp. Terror Saw 17523 | -2/Protoforge | UFD reported confirmed Drillbomb installation 17530 | -2/Protoforge | Lost 4 allies 17572 | -2/Protoforge | Spotted Hotshot 17573 | -2/Protoforge | Spotted Hotshot 17574 | -2/Protoforge | Allies destroyed Hotshot 17576 | -2/Protoforge | Spotted Hotshot 17576 | -2/Protoforge | Spotted Hotshot 17577 | -2/Protoforge | Destroyed Hotshot 17582 | -2/Protoforge | Destroyed Hotshot 17588 | -2/Protoforge | Destroyed Hotshot 17594 | -2/Protoforge | Found Scrap Suit 17601 | -2/Protoforge | Found Scrap Suit 17615 | -2/Protoforge | UFD reported confirmed Drillbomb installation 17625 | -2/Protoforge | System corruption reached 10% 17637 | -2/Protoforge | Spotted Striker 17639 | -2/Protoforge | Spotted Striker 17643 | -2/Protoforge | Destroyed Striker 17655 | -2/Protoforge | Destroyed Striker 17679 | -2/Protoforge | Warped through subspace to slip node 17682 | -2/Protoforge | Core integrity fell below 50% 17694 | -2/Protoforge | Spotted Executioner 17694 | -2/Protoforge | Spotted Executioner 17694 | -2/Protoforge | Spotted Hotshot 17694 | -2/Protoforge | Destroyed Executioner 17695 | -2/Protoforge | Destroyed Executioner 17701 | -2/Protoforge | Spotted Immortal 17702 | -2/Protoforge | UFD reported confirmed Drillbomb installation 17712 | -2/Protoforge | Spotted Hotshot 17739 | -2/Protoforge | Spotted Hotshot 17740 | -2/Protoforge | Spotted Hotshot 17742 | -2/Protoforge | Identified Matter Drive 17746 | -2/Protoforge | Destroyed Hotshot 17761 | -2/Protoforge | Spotted Immortal 17767 | -2/Protoforge | Spotted Executioner 17771 | -2/Protoforge | Spotted Decapitator 17777 | -2/Protoforge | Spotted Immortal 17780 | -2/Protoforge | Spotted Executioner 17782 | -2/Protoforge | Spotted Immortal 17783 | -2/Protoforge | Spotted Immortal 17790 | -2/Protoforge | Core integrity fell below 20% 17792 | -2/Protoforge | Spotted Executioner 17793 | -2/Protoforge | Spotted Hotshot 17801 | -2/Protoforge | Spotted Immortal 17804 | -2/Protoforge | Released all parts (6) 17805 | -2/Protoforge | Spotted Decapitator 17829 | -2/Protoforge | Lost 15 parts (4p1n7u3w) 17836 | -2/Protoforge | Lost 34 allies 17891 | -2/Protoforge | Destroyed by H-88 Terminator with Heavy Machine Gun Last Messages --------------- 17849_ N-04 Retriever inserts Exp. Surge Thruster into Forge Plexus. 17850_ N-04 Retriever inserts Corrupted Mak. Coolant Network into Forge Plexus. 17855_ Acquired 5 matter. 17856_ System corrupted: Component data lost. 17869_ Slug penetrates M-36 Artificer. 17869_ Slug penetrates Reinforced Barrier. 17873_ N-04 Retriever collects Neutrino Core. 17874_ N-04 Retriever collects Corrupted Mak. Salvage Targeting Computer. 17874_ N-04 Retriever collects Corrupted Lgt. Antimatter Reactor. 17879_ Acquired 10 matter. 17881_ Slug penetrates Wall. 17881_ Slug penetrates Pattern Transfigurator. 17883_ Slug penetrates Wall. 17883_ Slug penetrates H-88 Terminator. 17884_ Penetrated by Slug. 17888_ 0bP_NET: Lugger 782 inbound, all units not involved in other operations escort to target. 17891_ Penetrated by Slug. 17891_ Slug penetrates Wall. Map ----- +----------------------------------------------------+ | ##??????????????????????##??????###! % % " | | ##??????????????????????## ??##" %% % %%% %"% | | ##??????????????????????#" """?##% %%%%% %%" | | #???????????????????????## ###% %%"" %%"%"%#% | | #???????????????????????##= " #%" """"%###### | | #??????????????????????!"#% %% "%"&%=" "#% | | ##????????????????????%%""%"""#""""%%!" "" "# | | ##???????????????????? % %"% %% % # "" "#% | | ##????????????????????% % %%% %% % % # "" ##% | | ##???????????????????"[!% %%% % % ## | | ##?????###?###########"%[#%h"" """# " """ ## | | ##?????#????????###??? h =;"| [" % # """ ## | | ##?????#????????###???" h% ;"* = # %# """ ## | | ##?????#????????###? "" ]=% # # ## | | ##?????#????????###? ""=!%!;# # ########### | | ???????#????????###? ""%%%!;# " ########### | | ???????#????????### ?""!!!!## # ##????????# | | ???????#????????### ""%! ## #% ##????????# | | ########???????????? """ %%#######"![ ##????????# | | ?????###????????###??? ########%= ##????????# | | ?????########?##########;;;########! ##????????# | | ?????########?####??????# ##??????#?# | | ?????##????##?####??????+ ##?#??????# | | ?????##????##?####??????# ##????????# | | ?????##????##?####??????# #"""#+###"#"###???????# | | ?????##????##?####??????#@#" ? # ##????????# | | ?????##????##?####??????# ##""" # #?????????# | | ?????####??##?#########?# ##""" ###?????????# | | ##?######??##?########### ##""" ##???????#??# | | ???????##??##?##???######;## ##??????????# | | ???????##??##?##???## #""" ##?#????????# | | ???????##??##?##???## #??? ##??????????# | | ???????##??##?##???## #??? ###?????????# | | ???????##??##?##???## #??? ###??#??????# | | ???????##??##?##???## ####?###"##??#???????# | | ???????##??##?####### ####?######???????#### | | ???????###### #################?#####???????## # | | ###?#########?#?????????#### ?????##????????## # | | ????????????????????????####??????##???####### | | ???? ???#####?#???????"?####? ????##???#?####### | | ????##?#####?#?????? ???? ??????"##??##?## # | | ?????#????????#######?###### ?????####???## ! ## | | ?????#????????#######?######???? ?######### ### | | ?? ??# ?????? #######?##???##+############# ##? | | ?????#??????????? ????##?? ? + ##? | | ?????????????##########? ?################ "#? | | ??? ?#????????###########?################# ##? | | ?? ??#????????###?#???###?# ############### !! ##? | | ? ?? # ? ???##???????##?# ####!==[### | | ?????#? ?????##??????###?# """""" #####+####? | +----------------------------------------------------+ Best States ------------- Heat Dissipation 107 Coolant Potential 80 Energy Generation 73 Energy Capacity 1725 Matter Stores 300 Matter Capacity 300 Sight Range 16 Robot Scan Range 16 Terrain Scan Range 24 Terrain Scan Density 210 Jamming Range 14 Armor Coverage 825 Weapon Cycling 20 Evasion (%) 65 Targeting Accuracy 12 Target Analysis 10 Recoil Reduction 2 Offensive Hacking 42 Trap Extractor Capacity 8 Item Schematics ----------------- Hyp. Railgun | -5/Factory | Hacked Adv. Force Field | -4/Factory | Hacked Assault Drone Bay | -4/Zhirov | Free Exp. Heat Sink | -4/Zhirov | Free Exp. Optical Array | -4/Zhirov | Free Imp. Arc Thrower | -4/Zhirov | Free Prc. Matter Filter | -2/Quarantine | Archive Spectral Analyzer | -2/Quarantine | Archive Cld. Proton Cannon | -2/Quarantine | Archive Com. Particle Reactor | -2/Quarantine | Archive Robot Schematics ------------------ A-15 Conveyor | -2/Quarantine | Archive Fabricated ------------ Nothing Repaired ---------- Nothing Studied --------- None Alien Tech Used ----------------- Integrated Dissipator Dimensional Node Initializer Transdimensional Reconstructor Core Stripper Subatomic Replicator High-powered Transdimensional Reconstructor Supercharged TR Matter Drive Achievements -------------- Partsplosion UFD MVP We Are One Challenges ------------ None Game ------ Seed ModifiedPitchforkPower Manual? 0 Play Time 04:17:01 Cumulative 689.6 hours Start 2026.04.02 @ 14:01:30 End 2026.04.03 @ 16:47:57 Sessions 3 Manual Loads 0 Difficulty Rogue Special Mode None Game No. 374 Rogue 374 Adventurer 0 Explorer 0 Win Type - Total 30 Types 15/1/6/2/1/1/1/2/1/0 Lore% 93 Gallery% 87 Achievement% 78 Wizard Run 0 Options --------- Layout 0 ASCII 0 Keyboard 0 Movement Mouse Keybinds 0 Fullscreen 2 Font 24/Smallcaps Map View 76x50 Zoom Use 0% Tactical HUD 1 Map Filters NONE Filters NONE Steam 1 RUN: 73a76ddd-495a-4e5b-bb9b-5179a8be59a0